[Event "Titled Tuesday Blitz March 07 Late 2023"]
[White "Meduri, Aakaash"]
[Black "Souza, Gustavo Horokoski De"]
[WhiteFideId "2032252"]
[BlackFideId "2146584"]
[WhiteElo "2113"]
[BlackElo "1859"]
[Result "1-0"]
[Round "03"]
[TimeControl "180+2"]
[Date "2023.03.07"]
[WhiteClock "0:01:59"]
[BlackClock "0:01:12"]

1. d4 {[%clk 0:03:00]}  Nf6 {[%clk 0:02:59]} 2. Bg5 {[%clk 0:03:00]}  e6 {[%clk 0:02:57]} 3. Nd2 {[%clk 0:03:00]}  d5 {[%clk 0:02:51]} 4. e3 {[%clk 0:03:00]}  Be7 {[%clk 0:02:50]} 5. Bd3 {[%clk 0:03:00]}  c5 {[%clk 0:02:50]} 6. c3 {[%clk 0:03:01]}  Nc6 {[%clk 0:02:49]} 7. Ngf3 {[%clk 0:03:01]}  O-O {[%clk 0:02:49]} 8. O-O {[%clk 0:03:01]}  h6 {[%clk 0:02:48]} 9. Bh4 {[%clk 0:03:01]}  b6 {[%clk 0:02:49]} 10. Ne5 {[%clk 0:03:01]}  Nxe5 {[%clk 0:02:43]} 11. dxe5 {[%clk 0:03:02]}  Nd7 {[%clk 0:02:43]} 12. Bxe7 {[%clk 0:03:02]}  Qxe7 {[%clk 0:02:44]} 13. f4 {[%clk 0:03:03]}  c4 {[%clk 0:02:43]} 14. Bc2 {[%clk 0:03:03]}  Nc5 {[%clk 0:02:43]} 15. Qe2 {[%clk 0:03:02]}  Ba6 {[%clk 0:02:41]} 16. Rad1 {[%clk 0:03:00]}  Nd3 {[%clk 0:02:41]} 17. Bxd3 {[%clk 0:02:57]}  cxd3 {[%clk 0:02:42]} 18. Qg4 {[%clk 0:02:57]}  f5 {[%clk 0:02:40]} 19. exf6 {[%clk 0:02:53]}  Qxf6 {[%clk 0:02:39]} 20. e4 {[%clk 0:02:53]}  Rae8 {[%clk 0:02:36]} 21. e5 {[%clk 0:02:51]}  Qf5 {[%clk 0:02:32]} 22. Qf3 {[%clk 0:02:51]}  Kh7 {[%clk 0:02:25]} 23. g4 {[%clk 0:02:51]}  Qf7 {[%clk 0:02:19]} 24. Qe3 {[%clk 0:02:51]}  Rg8 {[%clk 0:02:16]} 25. h4 {[%clk 0:02:46]}  Qe7 {[%clk 0:02:16]} 26. Qg3 {[%clk 0:02:44]}  g5 {[%clk 0:02:14]} 27. hxg5 {[%clk 0:02:43]}  hxg5 {[%clk 0:02:14]} 28. f5 {[%clk 0:02:41]}  exf5 {[%clk 0:02:13]} 29. Rxf5 {[%clk 0:02:42]}  Rg6 {[%clk 0:02:11]} 30. Kg2 {[%clk 0:02:41]}  Rh6 {[%clk 0:02:07]} 31. Rdf1 {[%clk 0:02:40]}  Qc5 {[%clk 0:02:03]} 32. Rxg5 {[%clk 0:02:35]}  Re7 {[%clk 0:01:44]} 33. Qf4 {[%clk 0:02:30]}  Qc6 {[%clk 0:01:38]} 34. Qf5+ {[%clk 0:02:27]}  Rg6 {[%clk 0:01:36]} 35. Qf8 {[%clk 0:02:16]}  d4+ {[%clk 0:01:34]} 36. Kg3 {[%clk 0:02:15]}  Rxg5 {[%clk 0:01:23]} 37. Qxe7+ {[%clk 0:02:13]}  Rg7 {[%clk 0:01:23]} 38. Rf7 {[%clk 0:02:07]}  Rxf7 {[%clk 0:01:19]} 39. Qxf7+ {[%clk 0:02:08]}  Kh8 {[%clk 0:01:18]} 40. cxd4 {[%clk 0:02:05]}  Qh1 {[%clk 0:01:15]} 41. Qh5+ {[%clk 0:02:00]}  Qxh5 {[%clk 0:01:14]} 42. gxh5 {[%clk 0:02:01]}  Kg7 {[%clk 0:01:13]} 43. Kf4 {[%clk 0:02:00]}  Kh6 {[%clk 0:01:13]} 44. d5 {[%clk 0:01:59]}  Kxh5 {[%clk 0:01:14]} 45. Kf5 {[%clk 0:01:59]}  Bc8+ {[%clk 0:01:12]} 46. e6 {[%clk 0:01:59]}  Kh6 {[%clk 0:01:12]} 47. Kf6 {[%clk 0:01:59]} 1-0


[Site "https://www.chess.com"]

[Event "Titled Tuesday Blitz March 07 Late 2023"]
[White "Ramirez Vido, Robert Yorisan"]
[Black "Stead, Kerry"]
[WhiteFideId "3513823"]
[BlackFideId "3202577"]
[WhiteElo "2405"]
[BlackElo "1997"]
[Result "0-1"]
[Round "03"]
[TimeControl "180+2"]
[Date "2023.03.07"]
[WhiteClock "0:02:52"]
[BlackClock "0:01:35"]

1. Nf3 {[%clk 0:03:00]}  d5 {[%clk 0:01:55]} 2. g3 {[%clk 0:02:59]}  c5 {[%clk 0:01:54]} 3. Bg2 {[%clk 0:02:58]}  Nc6 {[%clk 0:01:53]} 4. O-O {[%clk 0:02:59]}  e5 {[%clk 0:01:53]} 5. d3 {[%clk 0:02:59]}  Be6 {[%clk 0:01:53]} 6. c3 {[%clk 0:02:56]}  f6 {[%clk 0:01:53]} 7. a3 {[%clk 0:02:55]}  Bd6 {[%clk 0:01:52]} 8. b4 {[%clk 0:02:55]}  cxb4 {[%clk 0:01:48]} 9. axb4 {[%clk 0:02:56]}  Nge7 {[%clk 0:01:45]} 10. e4 {[%clk 0:02:55]}  dxe4 {[%clk 0:01:39]} 11. dxe4 {[%clk 0:02:55]}  a6 {[%clk 0:01:38]} 12. Na3 {[%clk 0:02:51]}  O-O {[%clk 0:01:37]} 13. b5 {[%clk 0:02:51]}  axb5 {[%clk 0:01:36]} 14. Nxb5 {[%clk 0:02:52]}  Rxa1 {[%clk 0:01:35]} 0-1


[Site "https://www.chess.com"]

[Event "Titled Tuesday Blitz March 07 Late 2023"]
[White "Vanek, Tomas"]
[Black "Dodaro, Mattia"]
[WhiteFideId "313459"]
[BlackFideId "28583400"]
[WhiteElo "2052"]
[BlackElo "2396"]
[Result "0-1"]
[Round "03"]
[TimeControl "180+2"]
[Date "2023.03.07"]
[WhiteClock "0:00:27"]
[BlackClock "0:01:40"]

1. d4 {[%clk 0:02:58]}  e5 {[%clk 0:02:40]} 2. d5 {[%clk 0:02:54]}  f5 {[%clk 0:02:39]} 3. e4 {[%clk 0:02:48]}  fxe4 {[%clk 0:02:38]} 4. Qh5+ {[%clk 0:02:34]}  Ke7 {[%clk 0:02:36]} 5. Qxe5+ {[%clk 0:02:28]}  Kf7 {[%clk 0:02:36]} 6. Qxe4 {[%clk 0:02:07]}  Nf6 {[%clk 0:02:36]} 7. Qd3 {[%clk 0:02:02]}  Bc5 {[%clk 0:02:37]} 8. Be2 {[%clk 0:02:00]}  Re8 {[%clk 0:02:38]} 9. Nh3 {[%clk 0:01:47]}  Qe7 {[%clk 0:02:36]} 10. Nc3 {[%clk 0:01:36]}  d6 {[%clk 0:02:35]} 11. Nf4 {[%clk 0:01:32]}  Bg4 {[%clk 0:02:26]} 12. O-O {[%clk 0:01:29]}  Bxe2 {[%clk 0:02:23]} 13. Ncxe2 {[%clk 0:01:29]}  Nbd7 {[%clk 0:02:18]} 14. Ng3 {[%clk 0:01:22]}  Ne5 {[%clk 0:02:16]} 15. Qd1 {[%clk 0:01:21]}  Kg8 {[%clk 0:02:16]} 16. Be3 {[%clk 0:01:15]}  Bxe3 {[%clk 0:02:14]} 17. fxe3 {[%clk 0:01:15]}  Neg4 {[%clk 0:02:15]} 18. e4 {[%clk 0:01:15]}  Ne3 {[%clk 0:02:13]} 19. Qd3 {[%clk 0:01:13]}  Nxf1 {[%clk 0:02:13]} 20. Rxf1 {[%clk 0:01:13]}  Qe5 {[%clk 0:02:13]} 21. c3 {[%clk 0:01:11]}  Nxe4 {[%clk 0:02:07]} 22. Nxe4 {[%clk 0:01:08]}  Qxe4 {[%clk 0:02:08]} 23. Qxe4 {[%clk 0:01:04]}  Rxe4 {[%clk 0:02:09]} 24. Ne6 {[%clk 0:01:04]}  c6 {[%clk 0:02:06]} 25. Ng5 {[%clk 0:00:57]}  Re2 {[%clk 0:02:04]} 26. dxc6 {[%clk 0:00:57]}  bxc6 {[%clk 0:02:04]} 27. Rf2 {[%clk 0:00:56]}  Rae8 {[%clk 0:02:03]} 28. Nf3 {[%clk 0:00:53]}  d5 {[%clk 0:01:50]} 29. h3 {[%clk 0:00:53]}  a5 {[%clk 0:01:48]} 30. Nd4 {[%clk 0:00:49]}  Rxf2 {[%clk 0:01:46]} 31. Kxf2 {[%clk 0:00:49]}  c5 {[%clk 0:01:47]} 32. Nb3 {[%clk 0:00:49]}  c4 {[%clk 0:01:45]} 33. Nxa5 {[%clk 0:00:48]}  Ra8 {[%clk 0:01:46]} 34. Nc6 {[%clk 0:00:45]}  Rxa2 {[%clk 0:01:46]} 35. Ne7+ {[%clk 0:00:45]}  Kf7 {[%clk 0:01:46]} 36. Nxd5 {[%clk 0:00:45]}  Rxb2+ {[%clk 0:01:46]} 37. Kf3 {[%clk 0:00:46]}  Rc2 {[%clk 0:01:41]} 38. g4 {[%clk 0:00:42]}  Ke6 {[%clk 0:01:39]} 39. Nf4+ {[%clk 0:00:37]}  Kd6 {[%clk 0:01:39]} 40. Ne2 {[%clk 0:00:36]}  Ke5 {[%clk 0:01:37]} 41. h4 {[%clk 0:00:35]}  Rxe2 {[%clk 0:01:38]} 42. Kxe2 {[%clk 0:00:35]}  Ke4 {[%clk 0:01:38]} 43. g5 {[%clk 0:00:31]}  g6 {[%clk 0:01:37]} 44. Kd2 {[%clk 0:00:28]}  Kf3 {[%clk 0:01:37]} 45. Kd1 {[%clk 0:00:26]}  Kg4 {[%clk 0:01:35]} 46. Ke2 {[%clk 0:00:26]}  Kxh4 {[%clk 0:01:36]} 47. Ke3 {[%clk 0:00:26]}  Kxg5 {[%clk 0:01:36]} 48. Kd4 {[%clk 0:00:27]}  h5 {[%clk 0:01:37]} 49. Kxc4 {[%clk 0:00:27]}  h4 {[%clk 0:01:38]} 50. Kd3 {[%clk 0:00:27]}  h3 {[%clk 0:01:39]} 51. Ke3 {[%clk 0:00:26]}  h2 {[%clk 0:01:40]} 52. Kf2 {[%clk 0:00:26]}  h1=Q {[%clk 0:01:41]} 53. Kg3 {[%clk 0:00:27]}  Qf1 {[%clk 0:01:40]} 0-1


[Site "https://www.chess.com"]

[Event "Titled Tuesday Blitz March 07 Late 2023"]
[White "Maranhao,Jose Renato Ruiz"]
[Black "Aggelis, Nikolaos"]
[WhiteFideId "2135175"]
[BlackFideId "4213220"]
[WhiteElo "1970"]
[BlackElo "2189"]
[Result "0-1"]
[Round "03"]
[TimeControl "180+2"]
[Date "2023.03.07"]
[WhiteClock "0:00:01"]
[BlackClock "0:01:12"]

1. g3 {[%clk 0:03:00]}  c6 {[%clk 0:02:55]} 2. Bg2 {[%clk 0:03:01]}  d5 {[%clk 0:02:55]} 3. b3 {[%clk 0:02:59]}  Nf6 {[%clk 0:02:53]} 4. Bb2 {[%clk 0:02:59]}  Nbd7 {[%clk 0:02:51]} 5. d3 {[%clk 0:03:00]}  e5 {[%clk 0:02:45]} 6. Nd2 {[%clk 0:02:59]}  Bd6 {[%clk 0:02:38]} 7. Nh3 {[%clk 0:02:58]}  O-O {[%clk 0:02:39]} 8. O-O {[%clk 0:02:58]}  Re8 {[%clk 0:02:21]} 9. f3 {[%clk 0:02:57]}  a5 {[%clk 0:02:17]} 10. a3 {[%clk 0:02:49]}  a4 {[%clk 0:02:16]} 11. b4 {[%clk 0:02:49]}  c5 {[%clk 0:02:16]} 12. bxc5 {[%clk 0:02:25]}  Nxc5 {[%clk 0:02:17]} 13. Rb1 {[%clk 0:02:15]}  d4 {[%clk 0:02:13]} 14. Nc4 {[%clk 0:01:51]}  Nd5 {[%clk 0:02:05]} 15. f4 {[%clk 0:01:25]}  Bxh3 {[%clk 0:02:03]} 16. Bxd5 {[%clk 0:01:06]}  Bxf1 {[%clk 0:01:58]} 17. Qxf1 {[%clk 0:01:06]}  exf4 {[%clk 0:01:58]} 18. Bxd4 {[%clk 0:00:52]}  Ne6 {[%clk 0:01:58]} 19. Qf2 {[%clk 0:00:28]}  fxg3 {[%clk 0:01:54]} 20. hxg3 {[%clk 0:00:22]}  Bxg3 {[%clk 0:01:46]} 21. Qxg3 {[%clk 0:00:15]}  Qxd5 {[%clk 0:01:46]} 22. Be3 {[%clk 0:00:07]}  b5 {[%clk 0:01:45]} 23. Nb6 {[%clk 0:00:06]}  Qh5 {[%clk 0:01:42]} 24. Nd7 {[%clk 0:00:05]}  Kh8 {[%clk 0:01:41]} 25. Kf2 {[%clk 0:00:03]}  Rad8 {[%clk 0:01:36]} 26. Ne5 {[%clk 0:00:02]}  Ng5 {[%clk 0:01:32]} 27. Rh1 {[%clk 0:00:02]}  Nh3+ {[%clk 0:01:24]} 28. Rxh3 {[%clk 0:00:02]}  Qxe5 {[%clk 0:01:23]} 29. Qh4 {[%clk 0:00:01]}  Qf5+ {[%clk 0:01:18]} 30. Bf4 {[%clk 0:00:01]}  Rd4 {[%clk 0:01:15]} 31. e4 {[%clk 0:00:01]}  Qg6 {[%clk 0:01:12]} 32. Rg3 {[%clk 0:00:02]}  Qf6 {[%clk 0:01:12]} 33. Ke3 {[%clk 0:00:01]}  Qxh4 {[%clk 0:01:12]} 0-1


[Site "https://www.chess.com"]

[Event "Titled Tuesday Blitz March 07 Late 2023"]
[White "Lewtak, Damian"]
[Black "Einarsson, Halldor Gretar"]
[WhiteFideId "1141724"]
[BlackFideId "2300150"]
[WhiteElo "2302"]
[BlackElo "2142"]
[Result "1-0"]
[Round "03"]
[TimeControl "180+2"]
[Date "2023.03.07"]
[WhiteClock "0:00:06"]
[BlackClock "0:00:01"]

1. c4 {[%clk 0:03:00]}  c5 {[%clk 0:02:58]} 2. Nc3 {[%clk 0:03:01]}  Nc6 {[%clk 0:02:57]} 3. g3 {[%clk 0:03:01]}  g6 {[%clk 0:02:56]} 4. Bg2 {[%clk 0:03:02]}  Bg7 {[%clk 0:02:57]} 5. d3 {[%clk 0:03:03]}  e6 {[%clk 0:02:49]} 6. e4 {[%clk 0:03:03]}  Nge7 {[%clk 0:02:47]} 7. Nge2 {[%clk 0:03:02]}  O-O {[%clk 0:02:45]} 8. Be3 {[%clk 0:03:01]}  Nd4 {[%clk 0:02:41]} 9. O-O {[%clk 0:02:56]}  Nec6 {[%clk 0:02:39]} 10. Qc1 {[%clk 0:02:44]}  Nb4 {[%clk 0:02:25]} 11. Bxd4 {[%clk 0:02:35]}  cxd4 {[%clk 0:02:23]} 12. Nb5 {[%clk 0:02:35]}  Nxd3 {[%clk 0:02:01]} 13. Qd2 {[%clk 0:02:27]}  Ne5 {[%clk 0:01:51]} 14. Rac1 {[%clk 0:02:26]}  d5 {[%clk 0:01:31]} 15. cxd5 {[%clk 0:02:16]}  exd5 {[%clk 0:01:30]} 16. Nc7 {[%clk 0:02:15]}  Nc4 {[%clk 0:01:21]} 17. Rxc4 {[%clk 0:02:10]}  dxc4 {[%clk 0:01:20]} 18. Nxa8 {[%clk 0:02:10]}  Be6 {[%clk 0:01:10]} 19. Nf4 {[%clk 0:01:46]}  Qxa8 {[%clk 0:01:06]} 20. Nxe6 {[%clk 0:01:46]}  fxe6 {[%clk 0:01:05]} 21. e5 {[%clk 0:01:47]}  Bxe5 {[%clk 0:00:59]} 22. Qe2 {[%clk 0:01:46]}  Qb8 {[%clk 0:00:36]} 23. Qxc4 {[%clk 0:01:39]}  Re8 {[%clk 0:00:35]} 24. Bh3 {[%clk 0:01:35]}  Qd6 {[%clk 0:00:34]} 25. Re1 {[%clk 0:01:28]}  Kf7 {[%clk 0:00:32]} 26. Qd3 {[%clk 0:01:19]}  Rd8 {[%clk 0:00:30]} 27. Qe4 {[%clk 0:01:10]}  Bf6 {[%clk 0:00:26]} 28. Bxe6+ {[%clk 0:01:04]}  Kg7 {[%clk 0:00:25]} 29. Qxb7+ {[%clk 0:01:02]}  Kh6 {[%clk 0:00:23]} 30. Bg4 {[%clk 0:00:48]}  d3 {[%clk 0:00:22]} 31. Rd1 {[%clk 0:00:39]}  d2 {[%clk 0:00:21]} 32. Kg2 {[%clk 0:00:24]}  Re8 {[%clk 0:00:20]} 33. Qd7 {[%clk 0:00:18]}  Qxd7 {[%clk 0:00:16]} 34. Bxd7 {[%clk 0:00:19]}  Re1 {[%clk 0:00:13]} 35. Rxd2 {[%clk 0:00:18]}  Re7 {[%clk 0:00:11]} 36. Bg4 {[%clk 0:00:16]}  Bg5 {[%clk 0:00:10]} 37. f4 {[%clk 0:00:16]}  Bf6 {[%clk 0:00:11]} 38. Bf3 {[%clk 0:00:15]}  Bg7 {[%clk 0:00:11]} 39. h4 {[%clk 0:00:14]}  Bf6 {[%clk 0:00:11]} 40. Rc2 {[%clk 0:00:11]}  Kg7 {[%clk 0:00:11]} 41. b4 {[%clk 0:00:11]}  Re3 {[%clk 0:00:08]} 42. b5 {[%clk 0:00:10]}  Ra3 {[%clk 0:00:07]} 43. Bd5 {[%clk 0:00:08]}  Be7 {[%clk 0:00:06]} 44. Bb3 {[%clk 0:00:07]}  Kf6 {[%clk 0:00:05]} 45. Rc6+ {[%clk 0:00:07]}  Kg7 {[%clk 0:00:01]} 46. Kf3 {[%clk 0:00:05]}  Kf8 {[%clk 0:00:01]} 47. g4 {[%clk 0:00:06]}  Ra5 {[%clk 0:00:01]} 48. a4 {[%clk 0:00:05]}  a6 {[%clk 0:00:01]} 49. b6 {[%clk 0:00:06]} 1-0


[Site "https://www.chess.com"]

[Event "Titled Tuesday Blitz March 07 Late 2023"]
[White "Wartiovaara, Oliver"]
[Black "Smith, Garrett L"]
[WhiteFideId "513024"]
[BlackFideId "2024829"]
[WhiteElo "2214"]
[BlackElo "2271"]
[Result "1-0"]
[Round "03"]
[TimeControl "180+2"]
[Date "2023.03.07"]
[WhiteClock "0:00:06"]
[BlackClock "0:00:01"]

1. d4 {[%clk 0:03:00]}  Nf6 {[%clk 0:02:59]} 2. Nf3 {[%clk 0:03:00]}  g6 {[%clk 0:03:00]} 3. Nbd2 {[%clk 0:02:59]}  d5 {[%clk 0:02:58]} 4. b4 {[%clk 0:02:59]}  e6 {[%clk 0:02:53]} 5. Rb1 {[%clk 0:02:56]}  Ne4 {[%clk 0:02:42]} 6. Nxe4 {[%clk 0:02:39]}  dxe4 {[%clk 0:02:43]} 7. Ne5 {[%clk 0:02:39]}  f6 {[%clk 0:02:29]} 8. Nc4 {[%clk 0:02:38]}  Nc6 {[%clk 0:02:26]} 9. c3 {[%clk 0:02:37]}  Bg7 {[%clk 0:02:20]} 10. g3 {[%clk 0:02:15]}  O-O {[%clk 0:02:20]} 11. Bg2 {[%clk 0:02:15]}  f5 {[%clk 0:02:20]} 12. O-O {[%clk 0:02:15]}  Ne7 {[%clk 0:02:19]} 13. Qc2 {[%clk 0:02:08]}  Nd5 {[%clk 0:02:14]} 14. f3 {[%clk 0:02:05]}  exf3 {[%clk 0:02:10]} 15. Rxf3 {[%clk 0:01:56]}  c6 {[%clk 0:02:09]} 16. Rd3 {[%clk 0:01:51]}  b6 {[%clk 0:02:07]} 17. e4 {[%clk 0:01:49]}  fxe4 {[%clk 0:01:59]} 18. Bxe4 {[%clk 0:01:47]}  Ba6 {[%clk 0:01:59]} 19. Qb3 {[%clk 0:01:28]}  Qc7 {[%clk 0:01:40]} 20. Rd1 {[%clk 0:01:18]}  Rad8 {[%clk 0:01:39]} 21. Bg5 {[%clk 0:01:12]}  Rd7 {[%clk 0:01:36]} 22. a4 {[%clk 0:01:03]}  Rff7 {[%clk 0:01:16]} 23. Nb2 {[%clk 0:00:39]}  Kh8 {[%clk 0:01:00]} 24. b5 {[%clk 0:00:35]}  cxb5 {[%clk 0:00:58]} 25. axb5 {[%clk 0:00:35]}  Bb7 {[%clk 0:00:57]} 26. c4 {[%clk 0:00:34]}  Nc3 {[%clk 0:00:42]} 27. Bxb7 {[%clk 0:00:26]}  Nxb1 {[%clk 0:00:41]} 28. Bc6 {[%clk 0:00:15]}  Bxd4+ {[%clk 0:00:32]} 29. Kg2 {[%clk 0:00:14]}  Rf2+ {[%clk 0:00:30]} 30. Kh3 {[%clk 0:00:15]}  Qe5 {[%clk 0:00:20]} 31. Nd3 {[%clk 0:00:10]}  Qf5+ {[%clk 0:00:14]} 32. g4 {[%clk 0:00:09]}  Qxg5 {[%clk 0:00:05]} 33. Nxf2 {[%clk 0:00:09]}  Qh6+ {[%clk 0:00:03]} 34. Kg2 {[%clk 0:00:09]}  Qf4 {[%clk 0:00:01]} 35. Qf3 {[%clk 0:00:06]} 1-0


[Site "https://www.chess.com"]

[Event "Titled Tuesday Blitz March 07 Late 2023"]
[White "Schut, Han"]
[Black "Womacka, Mathias"]
[WhiteFideId "1005561"]
[BlackFideId "4611390"]
[WhiteElo "2024"]
[BlackElo "2377"]
[Result "0-1"]
[Round "03"]
[TimeControl "180+2"]
[Date "2023.03.07"]
[WhiteClock "0:02:27"]
[BlackClock "0:02:43"]

1. e4 {[%clk 0:03:00]}  c5 {[%clk 0:02:58]} 2. Nf3 {[%clk 0:02:56]}  d6 {[%clk 0:02:59]} 3. d4 {[%clk 0:02:56]}  cxd4 {[%clk 0:03:00]} 4. Nxd4 {[%clk 0:02:57]}  Nf6 {[%clk 0:02:59]} 5. f3 {[%clk 0:02:57]}  e6 {[%clk 0:02:56]} 6. c4 {[%clk 0:02:56]}  Be7 {[%clk 0:02:54]} 7. Nc3 {[%clk 0:02:56]}  O-O {[%clk 0:02:54]} 8. Be3 {[%clk 0:02:57]}  Nbd7 {[%clk 0:02:54]} 9. Be2 {[%clk 0:02:57]}  d5 {[%clk 0:02:54]} 10. cxd5 {[%clk 0:02:56]}  exd5 {[%clk 0:02:55]} 11. exd5 {[%clk 0:02:49]}  Nb6 {[%clk 0:02:55]} 12. O-O {[%clk 0:02:42]}  Nbxd5 {[%clk 0:02:55]} 13. Nxd5 {[%clk 0:02:42]}  Nxd5 {[%clk 0:02:55]} 14. Bf2 {[%clk 0:02:43]}  Nf4 {[%clk 0:02:53]} 15. Bc4 {[%clk 0:02:32]}  Bc5 {[%clk 0:02:52]} 16. Qd2 {[%clk 0:02:27]}  Qg5 {[%clk 0:02:43]} 0-1


[Site "https://www.chess.com"]

[Event "Titled Tuesday Blitz March 07 Late 2023"]
[White "Pasti, Aron"]
[Black "Floresvillar Gonzalez, Luis Migu"]
[WhiteFideId "785857"]
[BlackFideId "5100542"]
[WhiteElo "2173"]
[BlackElo "2040"]
[Result "0-1"]
[Round "03"]
[TimeControl "180+2"]
[Date "2023.03.07"]
[WhiteClock "0:00:23"]
[BlackClock "0:00:25"]

1. e4 {[%clk 0:03:00]}  c6 {[%clk 0:02:55]} 2. d4 {[%clk 0:03:00]}  d5 {[%clk 0:02:54]} 3. exd5 {[%clk 0:03:01]}  cxd5 {[%clk 0:02:53]} 4. Nf3 {[%clk 0:03:02]}  Nc6 {[%clk 0:02:53]} 5. c3 {[%clk 0:03:02]}  Nf6 {[%clk 0:02:53]} 6. Bd3 {[%clk 0:03:02]}  g6 {[%clk 0:02:52]} 7. Bf4 {[%clk 0:03:02]}  Bg7 {[%clk 0:02:52]} 8. O-O {[%clk 0:03:02]}  O-O {[%clk 0:02:53]} 9. Nbd2 {[%clk 0:03:01]}  Bg4 {[%clk 0:02:52]} 10. h3 {[%clk 0:03:01]}  Bxf3 {[%clk 0:02:52]} 11. Nxf3 {[%clk 0:03:00]}  Ne4 {[%clk 0:02:52]} 12. Re1 {[%clk 0:02:55]}  f5 {[%clk 0:02:50]} 13. Ng5 {[%clk 0:02:45]}  Qd7 {[%clk 0:02:47]} 14. f3 {[%clk 0:02:40]}  Nxg5 {[%clk 0:02:45]} 15. Bxg5 {[%clk 0:02:41]}  e6 {[%clk 0:02:42]} 16. Bf4 {[%clk 0:02:32]}  a6 {[%clk 0:02:31]} 17. Qe2 {[%clk 0:02:30]}  Rfe8 {[%clk 0:02:28]} 18. Qe3 {[%clk 0:02:28]}  b5 {[%clk 0:02:27]} 19. a4 {[%clk 0:02:24]}  Kf7 {[%clk 0:02:26]} 20. axb5 {[%clk 0:02:23]}  axb5 {[%clk 0:02:25]} 21. Bxb5 {[%clk 0:02:23]}  Rxa1 {[%clk 0:02:23]} 22. Rxa1 {[%clk 0:02:24]}  Qb7 {[%clk 0:02:21]} 23. Bxc6 {[%clk 0:02:22]}  Qxc6 {[%clk 0:02:21]} 24. Ra7+ {[%clk 0:02:21]}  Re7 {[%clk 0:02:21]} 25. Rxe7+ {[%clk 0:02:17]}  Kxe7 {[%clk 0:02:21]} 26. Be5 {[%clk 0:02:17]}  Bxe5 {[%clk 0:02:18]} 27. Qxe5 {[%clk 0:02:18]}  Kf7 {[%clk 0:02:17]} 28. Kf2 {[%clk 0:02:18]}  Qb6 {[%clk 0:02:12]} 29. b4 {[%clk 0:02:17]}  Qc6 {[%clk 0:02:11]} 30. Qh8 {[%clk 0:02:14]}  Qxc3 {[%clk 0:02:09]} 31. Qxh7+ {[%clk 0:02:14]}  Kf6 {[%clk 0:02:09]} 32. Qh4+ {[%clk 0:02:12]}  Kf7 {[%clk 0:02:06]} 33. b5 {[%clk 0:02:11]}  Qb2+ {[%clk 0:02:06]} 34. Kg3 {[%clk 0:02:08]}  Qxb5 {[%clk 0:02:05]} 35. Kf4 {[%clk 0:02:06]}  Qb8+ {[%clk 0:01:58]} 36. Ke3 {[%clk 0:01:58]}  Qb3+ {[%clk 0:01:57]} 37. Kf2 {[%clk 0:01:58]}  Qb2+ {[%clk 0:01:52]} 38. Kg3 {[%clk 0:01:58]}  Qd2 {[%clk 0:01:48]} 39. Qh7+ {[%clk 0:01:52]}  Kf6 {[%clk 0:01:47]} 40. Qh4+ {[%clk 0:01:45]}  Kf7 {[%clk 0:01:46]} 41. Qf4 {[%clk 0:01:45]}  Qc3 {[%clk 0:01:32]} 42. Kh4 {[%clk 0:01:39]}  Qe1+ {[%clk 0:01:23]} 43. Kg5 {[%clk 0:01:38]}  Qa5 {[%clk 0:01:12]} 44. Kh6 {[%clk 0:00:56]}  Qd8 {[%clk 0:01:07]} 45. g4 {[%clk 0:00:33]}  Qh8+ {[%clk 0:00:58]} 46. Kg5 {[%clk 0:00:32]}  Qxh3 {[%clk 0:00:50]} 47. Qc7+ {[%clk 0:00:31]}  Kf8 {[%clk 0:00:47]} 48. Kxg6 {[%clk 0:00:23]}  Ke8 {[%clk 0:00:41]} 49. Kf6 {[%clk 0:00:23]}  Qh6+ {[%clk 0:00:39]} 50. Ke5 {[%clk 0:00:22]}  fxg4 {[%clk 0:00:35]} 51. fxg4 {[%clk 0:00:23]}  Qh2+ {[%clk 0:00:25]} 52. Kxe6 {[%clk 0:00:22]}  Qxc7 {[%clk 0:00:25]} 53. Kxd5 {[%clk 0:00:23]}  Qd7+ {[%clk 0:00:25]} 54. Ke5 {[%clk 0:00:23]}  Qxg4 {[%clk 0:00:25]} 55. d5 {[%clk 0:00:23]}  Kd7 {[%clk 0:00:25]} 0-1


[Site "https://www.chess.com"]

[Event "Titled Tuesday Blitz March 07 Late 2023"]
[White "rikchessmx"]
[Black "Garcia Almaguer, Juan Manuel"]
[BlackFideId "5110491"]
[WhiteElo "2188"]
[BlackElo "2117"]
[Result "0-1"]
[Round "03"]
[TimeControl "180+2"]
[Date "2023.03.07"]
[WhiteClock "0:00:02"]
[BlackClock "0:00:10"]

1. e4 {[%clk 0:02:45]}  e5 {[%clk 0:02:20]} 2. Nf3 {[%clk 0:02:44]}  Nc6 {[%clk 0:02:20]} 3. Bb5 {[%clk 0:02:45]}  a6 {[%clk 0:02:19]} 4. Ba4 {[%clk 0:02:45]}  Nf6 {[%clk 0:02:12]} 5. O-O {[%clk 0:02:44]}  Be7 {[%clk 0:02:11]} 6. Re1 {[%clk 0:02:37]}  b5 {[%clk 0:02:11]} 7. Bb3 {[%clk 0:02:38]}  O-O {[%clk 0:02:11]} 8. d3 {[%clk 0:02:38]}  h6 {[%clk 0:02:11]} 9. a4 {[%clk 0:02:37]}  Bb7 {[%clk 0:02:10]} 10. c3 {[%clk 0:02:37]}  d6 {[%clk 0:02:07]} 11. Nbd2 {[%clk 0:02:36]}  Na5 {[%clk 0:02:07]} 12. Bc2 {[%clk 0:02:35]}  c5 {[%clk 0:02:07]} 13. Nf1 {[%clk 0:02:32]}  Re8 {[%clk 0:01:58]} 14. Ne3 {[%clk 0:02:30]}  Bf8 {[%clk 0:01:57]} 15. Nf5 {[%clk 0:02:29]}  d5 {[%clk 0:01:53]} 16. Qe2 {[%clk 0:02:20]}  c4 {[%clk 0:01:50]} 17. Nd2 {[%clk 0:02:00]}  g6 {[%clk 0:01:43]} 18. Ng3 {[%clk 0:01:58]}  d4 {[%clk 0:01:40]} 19. dxc4 {[%clk 0:01:50]}  bxc4 {[%clk 0:01:25]} 20. Nxc4 {[%clk 0:01:48]}  Nxc4 {[%clk 0:01:24]} 21. Qxc4 {[%clk 0:01:47]}  Rc8 {[%clk 0:01:24]} 22. Qb3 {[%clk 0:01:43]}  Qc7 {[%clk 0:01:06]} 23. Bd2 {[%clk 0:01:43]}  h5 {[%clk 0:01:04]} 24. Rac1 {[%clk 0:01:32]}  h4 {[%clk 0:01:03]} 25. Nf1 {[%clk 0:01:32]}  Qd7 {[%clk 0:01:00]} 26. h3 {[%clk 0:01:28]}  d3 {[%clk 0:00:56]} 27. Bb1 {[%clk 0:01:05]}  Nxe4 {[%clk 0:00:39]} 28. Qd1 {[%clk 0:00:57]}  f5 {[%clk 0:00:33]} 29. Re3 {[%clk 0:00:27]}  Bc5 {[%clk 0:00:29]} 30. Rxd3 {[%clk 0:00:24]}  Bxf2+ {[%clk 0:00:24]} 31. Kh1 {[%clk 0:00:21]}  Qc6 {[%clk 0:00:22]} 32. Qf3 {[%clk 0:00:20]}  Ng3+ {[%clk 0:00:19]} 33. Nxg3 {[%clk 0:00:18]}  Qxf3 {[%clk 0:00:19]} 34. gxf3 {[%clk 0:00:17]}  hxg3 {[%clk 0:00:20]} 35. Kg2 {[%clk 0:00:15]}  e4 {[%clk 0:00:20]} 36. fxe4 {[%clk 0:00:13]}  Bxe4+ {[%clk 0:00:21]} 37. Rf3 {[%clk 0:00:11]}  Rcd8 {[%clk 0:00:18]} 38. Bg5 {[%clk 0:00:05]}  Bxf3+ {[%clk 0:00:18]} 39. Kxf3 {[%clk 0:00:05]}  Rd5 {[%clk 0:00:18]} 40. Ba2 {[%clk 0:00:03]}  Re5 {[%clk 0:00:18]} 41. Rd1 {[%clk 0:00:03]}  f4 {[%clk 0:00:14]} 42. Rxd5 {[%clk 0:00:02]}  Re3+ {[%clk 0:00:10]} 0-1


[Site "https://www.chess.com"]